[Event "Opocensky Memorial 2019"]
[Site "Prague"]
[Date "2019.06.23"]
[Round "2.1"]
[White "Sokolov, Alexander"]
[Black "Kozusek, Daniel"]
[Result "1/2-1/2"]
[ECO "C06"]
[WhiteElo "2382"]
[BlackElo "2339"]
[Annotator "NA"]
[PlyCount "39"]
[EventDate "2019.06.22"]
[EventType "tourn"]
[EventCountry "CZE"]
[SourceTitle "playchess.com"]
[Source "ChessBase"]
[SourceQuality "1"]
[TimeControl "5400+30"]

1. e4 {[%emt 0:00:00]} e6 {[%emt 0:00:00]} 2. d4 {[%emt 0:00:00]} d5 {[%emt 0:00:02]} 3. Nd2 {[%emt 0:00:00]} Nf6 {[%emt 0:00:04]} 4. e5 {[%emt 0:00:00]} Nfd7 {[%emt 0:00:09]} 5. c3 {[%emt 0:00:13]} c5 {[%emt 0:00:06]} 6. Bd3 {[%emt 0:00:05]} Nc6 {[%emt 0:00:04]} 7. Ne2 {[%emt 0:00:07]} cxd4 {[%emt 0:00:04]} 8. cxd4 {[%emt 0:00:05]} f6 {[%emt 0:00:04]} 9. exf6 {[%emt 0:00:05]} Qxf6 {[%emt 0:00:04]} 10. Nf3 {[%emt 0:00:20]} h6 {[%emt 0:00:04]} 11. Qc2 {[%emt 0:00:58]} Bd6 {[%emt 0:00:50]} 12. Bg6+ {[%emt 0:00:23]} Ke7 {[%emt 0:00:06]} 13. a3 {[%emt 0:00:20]} Rd8 {[%emt 0:00:25]} 14. Be3 {[%emt 0:00:43]} Nf8 {[%emt 0:03:30]} 15. Bd3 {[%emt 0:00:25]} Kf7 {[%emt 0:00:28]} 16. O-O {[%emt 0:02:27]} Kg8 {[%emt 0:00:07]} 17. Qd2 {[%emt 0:00:29]} e5 {[%emt 0:03:48]} 18. dxe5 {[%emt 0:00:56]} Nxe5 {[%emt 0:00:06]} 19. Nxe5 {[%emt 0:00:14]} Bxe5 {[%emt 0:00:37]} 20. Bd4 {[%emt 0:10:22]} 1/2-1/2

[Event "Opocensky Memorial 2019"]
[Site "Prague"]
[Date "2019.06.23"]
[Round "2.2"]
[White "Neuman, Petr"]
[Black "Kourousis, Epaminondas"]
[Result "1/2-1/2"]
[ECO "B40"]
[WhiteElo "2395"]
[BlackElo "2394"]
[Annotator "NA"]
[PlyCount "21"]
[EventDate "2019.06.22"]
[EventType "tourn"]
[EventCountry "CZE"]
[SourceTitle "playchess.com"]
[Source "ChessBase"]
[SourceQuality "1"]
[TimeControl "5400+30"]

1. e4 {[%emt 0:00:00]} c5 {[%emt 0:00:00]} 2. Be2 {[%emt 0:00:35]} Nc6 {[%emt 0:00:00]} 3. c3 {[%emt 0:00:18]} Nf6 {[%emt 0:00:14]} 4. d3 {[%emt 0:00:10]} d5 {[%emt 0:06:22]} 5. Nd2 {[%emt 0:01:43]} Qc7 {[%emt 0:01:31]} 6. Ngf3 {[%emt 0:00:15]} e6 {[%emt 0:01:01]} 7. O-O {[%emt 0:01:12]} Be7 {[%emt 0:01:13]} 8. a3 {[%emt 0:06:16]} O-O {[%emt 0:00:48]} 9. Re1 {[%emt 0:06:16]} Rd8 {[%emt 0:05:23]} 10. Qc2 {[%emt 0:01:11]} b6 {[%emt 0:04:18]} 11. Bf1 {[%emt 0:03:04]} 1/2-1/2

[Event "Opocensky Memorial 2019"]
[Site "Prague"]
[Date "2019.06.23"]
[Round "2.3"]
[White "Sergeev, Vladimir"]
[Black "Ivanov, Mikhail M"]
[Result "1/2-1/2"]
[ECO "D13"]
[WhiteElo "2411"]
[BlackElo "2366"]
[Annotator "NA"]
[PlyCount "20"]
[EventDate "2019.06.22"]
[EventType "tourn"]
[EventCountry "CZE"]
[SourceTitle "playchess.com"]
[Source "ChessBase"]
[SourceQuality "1"]
[TimeControl "5400+30"]

1. d4 {[%emt 0:18:10]} d5 {[%emt 0:00:00]} 2. c4 {[%emt 0:00:13]} c6 {[%emt 0:00:01]} 3. cxd5 {[%emt 0:00:14]} cxd5 {[%emt 0:00:05]} 4. Nc3 {[%emt 0:00:06]} Nc6 {[%emt 0:00:05]} 5. Nf3 {[%emt 0:00:09]} Nf6 {[%emt 0:00:05]} 6. Bf4 {[%emt 0:00:07]} a6 {[%emt 0:00:25]} 7. e3 {[%emt 0:00:04]} Bg4 {[%emt 0:00:10]} 8. Be2 {[%emt 0:00:04]} e6 {[%emt 0:00:04]} 9. O-O {[%emt 0:00:06]} Bd6 {[%emt 0:00:06]} 10. Bxd6 {[%emt 0:00:07]} Qxd6 {[%emt 0:00:06]} 1/2-1/2

[Event "Opocensky Memorial 2019"]
[Site "Prague"]
[Date "2019.06.23"]
[Round "2.4"]
[White "Sahidi, Samir"]
[Black "Burdalev, Kirill"]
[Result "0-1"]
[ECO "D12"]
[WhiteElo "2380"]
[BlackElo "2385"]
[Annotator "NA"]
[PlyCount "96"]
[EventDate "2019.06.22"]
[EventType "tourn"]
[EventCountry "CZE"]
[SourceTitle "playchess.com"]
[Source "ChessBase"]
[SourceQuality "1"]
[TimeControl "5400+30"]

1. d4 {[%emt 1:30:30]} d5 {[%emt 1:30:30]} 2. c4 {[%emt 0:00:30]} c6 {[%emt 0:00:30]} 3. Nf3 {[%emt 0:00:30]} Nf6 {[%emt 0:00:30]} 4. e3 {[%emt 0:00:30]} Bf5 {[%emt 0:00:30]} 5. Qb3 {[%emt 0:00:30]} Qb6 {[%emt 0:00:30]} 6. Nc3 {[%emt 0:00:30]} e6 {[%emt 0:00:30]} 7. Be2 {[%emt 0:00:30]} Nbd7 {[%emt 0:00:30]} 8. O-O {[%emt 0:00:30]} h6 {[%emt 0:00:30]} 9. Qxb6 {[%emt 0:00:30]} axb6 {[%emt 0:00:30]} 10. Bd2 {[%emt 0:00:30]} Bd6 {[%emt 0:00:30]} 11. Rac1 {[%emt 0:00:30]} dxc4 {[%emt 0:00:30]} 12. Bxc4 {[%emt 0:00:30]} b5 {[%emt 0:00:30]} 13. Bb3 {[%emt 0:00:30]} O-O {[%emt 0:00:30]} 14. Rfe1 {[%emt 0:00:30]} Ne4 {[%emt 0:00:30]} 15. a3 {[%emt 0:00:30]} Nb6 {[%emt 0:00:30]} 16. h3 {[%emt 0:00:30]} Rfd8 {[%emt 0:00:30]} 17. g4 {[%emt 0:00:30]} Bg6 {[%emt 0:00:30]} 18. Bc2 {[%emt 0:00:30]} Nxd2 {[%emt 0:00:30]} 19. Nxd2 {[%emt 0:00:30]} Bxc2 {[%emt 0:00:30]} 20. Rxc2 {[%emt 0:00:30]} e5 {[%emt 0:00:30]} 21. Nf3 {[%emt 0:00:30]} exd4 {[%emt 0:00:30]} 22. Nxd4 {[%emt 0:00:30]} Be5 {[%emt 0:00:30]} 23. Nce2 {[%emt 0:00:30]} Nd5 {[%emt 0:00:30]} 24. Nf3 {[%emt 0:00:30]} Bc7 {[%emt 0:00:30]} 25. Nc3 {[%emt 0:00:30]} Ba5 {[%emt 0:00:30]} 26. b4 {[%emt 0:00:30]} Bb6 {[%emt 0:00:30]} 27. Nxd5 {[%emt 0:00:30]} Rxd5 {[%emt 0:00:30]} 28. Rc3 {[%emt 0:00:30]} Rad8 {[%emt 0:00:30]} 29. Kf1 {[%emt 0:00:30]} g6 {[%emt 0:00:30]} 30. Rec1 {[%emt 0:00:30]} f5 {[%emt 0:00:30]} 31. Ke2 {[%emt 0:00:30]} Kf7 {[%emt 0:00:30]} 32. Rd3 {[%emt 0:00:30]} Kf6 {[%emt 0:00:30]} 33. Rxd5 {[%emt 0:00:30]} Rxd5 {[%emt 0:00:30]} 34. gxf5 {[%emt 0:00:30]} gxf5 {[%emt 0:00:30]} 35. Rg1 {[%emt 0:00:30]} Kf7 {[%emt 0:00:30]} 36. Rd1 {[%emt 0:00:30]} Rxd1 {[%emt 0:00:30]} 37. Kxd1 {[%emt 0:00:30]} c5 {[%emt 0:00:30]} 38. Kd2 {[%emt 0:00:30]} c4 {[%emt 0:00:30]} 39. Kc3 {[%emt 0:00:30]} f4 {[%emt 0:00:30]} 40. exf4 {[%emt 0:00:30]} Bxf2 {[%emt 0:00:30]} 41. Kd2 {[%emt 0:00:30]} Ke6 {[%emt 0:00:30]} 42. Ke2 {[%emt 0:00:30]} Bb6 {[%emt 0:00:30]} 43. Kd2 {[%emt 0:00:30]} Kf5 {[%emt 0:00:30]} 44. Ne5 {[%emt 0:00:30]} Bc7 {[%emt 0:00:30]} 45. Nf7 {[%emt 0:00:30]} Kf6 {[%emt 0:00:30]} 46. Nxh6 {[%emt 0:00:30]} Bxf4+ {[%emt 0:00:30]} 47. Kc3 {[%emt 0:00:30]} Bxh6 {[%emt 0:00:30]} 48. a4 {[%emt 0:00:30]} bxa4 0-1

[Event "Opocensky Memorial 2019"]
[Site "Prague"]
[Date "2019.06.23"]
[Round "3.1"]
[White "Plischki, Sebastian"]
[Black "Sokolov, Alexander"]
[Result "1-0"]
[ECO "E69"]
[WhiteElo "2420"]
[BlackElo "2382"]
[Annotator "NA RC"]
[PlyCount "75"]
[EventDate "2019.06.22"]
[EventType "tourn"]
[EventCountry "CZE"]
[SourceTitle "playchess.com"]
[Source "ChessBase"]
[SourceQuality "1"]
[TimeControl "5400+30"]

1. d4 {[%emt 0:00:00]} Nf6 {[%emt 0:00:00]} 2. c4 {[%emt 0:00:00]} g6 {[%emt 0:00:00]} 3. g3 {[%emt 0:00:09]} Bg7 {[%emt 0:00:01]} 4. Bg2 {[%emt 0:00:10]} O-O {[%emt 0:00:10]} 5. Nc3 {[%emt 0:00:15]} d6 {[%emt 0:00:07]} 6. Nf3 {[%emt 0:00:09]} Nbd7 {[%emt 0:00:29]} 7. O-O {[%emt 0:00:17]} e5 {[%emt 0:00:18]} 8. e4 {[%emt 0:00:16]} c6 {[%emt 0:00:22]} 9. h3 {[%emt 0:00:18]} Re8 {[%emt 0:00:32]} 10. Be3 {[%emt 0:00:33]} a5 {[%emt 0:01:15]} 11. Qc2 {[%emt 0:02:01]} exd4 12. Nxd4 {[%emt 0:00:15]} Nc5 {[%emt 0:02:06]} 13. Rad1 {[%emt 0:01:11]} Qe7 {[%emt 0:01:40]} 14. Rfe1 {[%emt 0:00:34]} a4 {[%emt 0:00:59]} 15. f4 {[%emt 0:02:02]} Qc7 {[%emt 0:02:31]} 16. Bf2 {[%emt 0:08:30]} Qa5 {[%emt 0:01:10]} 17. Kh2 {[%emt 0:09:31]} Qb4 {[%emt 0:04:27]} 18. a3 {[%emt 0:05:17]} Qa5 {[%emt 0:00:16]} 19. Nf3 {[%emt 0:01:19]} Be6 {[%emt 0:03:19]} 20. Bxc5 {[%emt 0:04:48]} dxc5 {[%emt 0:18:45]} 21. e5 {[%emt 0:01:25]} Nd7 {[%emt 0:00:12]} 22. Ne4 {[%emt 0:05:06]} Bf5 {[%emt 0:02:32]} 23. Qe2 {[%emt 0:05:45]} Bxe4 {[%emt 0:02:19]} 24. Qxe4 {[%emt 0:00:17]} Rad8 {[%emt 0:02:13]} 25. h4 {[%emt 0:07:35]} Nf8 {[%emt 0:07:47]} 26. Bh3 {[%emt 0:01:26]} f6 {[%emt 0:04:54]} 27. h5 {[%emt 0:05:56]} fxe5 {[%emt 0:03:06]} 28. Rxd8 {[%emt 0:01:43]} Qxd8 {[%emt 0:01:10]} 29. hxg6 {[%emt 0:01:10]} hxg6 {[%emt 0:00:12]} 30. Re2 {[%emt 0:02:32]} Ne6 {[%emt 0:11:31]} 31. Qxg6 {[%emt 0:03:44]} Nf8 {[%emt 0:01:52]} 32. Qe4 {[%emt 0:02:20]} Ne6 {[%emt 0:00:12]} 33. Bxe6+ {[%emt 0:03:32]} Rxe6 {[%emt 0:00:06]} 34. Kg2 {[%emt 0:00:24]} Rh6 {[%emt 0:01:12]} 35. fxe5 {[%emt 0:01:58]} Qd1 {[%emt 0:01:43]} 36. Re1 {[%emt 0:00:51]} Qd7 {[%emt 0:00:53]} 37. e6 {[%emt 0:00:18]} Qe7 {[%emt 0:00:02]} 38. Nh4 {[%emt 0:00:49]} 1-0

[Event "Opocensky Memorial 2019"]
[Site "Prague"]
[Date "2019.06.23"]
[Round "3.3"]
[White "Ivanov, Mikhail M"]
[Black "Sahidi, Samir"]
[Result "1/2-1/2"]
[ECO "A34"]
[WhiteElo "2366"]
[BlackElo "2380"]
[Annotator "ChessBase"]
[PlyCount "122"]
[EventDate "2019.06.22"]
[EventType "tourn"]
[EventCountry "CZE"]
[SourceTitle "playchess.com"]
[Source "ChessBase"]
[SourceQuality "1"]
[TimeControl "5400+30"]

1. Nf3 {[%emt 0:00:00]} Nf6 {[%emt 0:00:00]} 2. g3 {[%emt 0:00:12]} d5 {[%emt 0:01:05]} 3. Bg2 {[%emt 0:00:11]} c5 {[%emt 0:01:36]} 4. c4 {[%emt 0:00:24]} Nc6 {[%emt 0:02:30]} 5. cxd5 Nxd5 {[%emt 0:00:09]} 6. Nc3 {[%emt 0:07:08]} Nc7 {[%emt 0:07:41]} 7. d3 {[%emt 0:00:50]} e5 {[%emt 0:01:14]} 8. Nd2 {[%emt 0:00:06]} Be6 {[%emt 0:01:44]} 9. Nc4 {[%emt 0:00:44]} Qd7 {[%emt 0:01:09]} 10. Qa4 {[%emt 0:00:38]} f6 {[%emt 0:04:47]} 11. f4 {[%emt 0:07:57]} exf4 {[%emt 0:01:45]} 12. Bxf4 {[%emt 0:00:13]} Be7 {[%emt 0:01:40]} 13. Bxc7 {[%emt 0:01:29]} Qxc7 {[%emt 0:03:22]} 14. Nd5 {[%emt 0:00:42]} Bxd5 {[%emt 0:19:40]} 15. Bxd5 {[%emt 0:00:15]} O-O-O {[%emt 0:00:22]} 16. Bxc6 {[%emt 0:00:59]} Qxc6 {[%emt 0:00:22]} 17. Qxc6+ {[%emt 0:00:10]} bxc6 {[%emt 0:00:05]} 18. Rf1 {[%emt 0:19:52]} Rhe8 {[%emt 0:04:09]} 19. O-O-O {[%emt 0:04:15]} Bd6 {[%emt 0:01:48]} 20. e3 {[%emt 0:01:28]} Be5 {[%emt 0:03:10]} 21. Kc2 {[%emt 0:00:30]} Rd5 {[%emt 0:00:26]} 22. Rf3 {[%emt 0:02:52]} Bc7 {[%emt 0:01:29]} 23. Rd2 {[%emt 0:05:15]} Re7 {[%emt 0:04:11]} 24. g4 {[%emt 0:03:20]} Kb7 {[%emt 0:16:46]} 25. h3 {[%emt 0:02:40]} Red7 {[%emt 0:01:13]} 26. e4 {[%emt 0:10:58]} Rg5 {[%emt 0:01:12]} 27. Rg2 {[%emt 0:02:13]} h5 {[%emt 0:01:24]} 28. Rf5 {[%emt 0:00:52]} Rxf5 {[%emt 0:00:45]} 29. gxf5 {[%emt 0:00:57]} Bf4 {[%emt 0:00:30]} 30. Rf2 {[%emt 0:01:13]} Bg3 {[%emt 0:01:08]} 31. Rf3 {[%emt 0:00:22]} Bh4 {[%emt 0:02:14]} 32. Kd1 {[%emt 0:01:28]} Kc7 {[%emt 0:03:03]} 33. Ke2 {[%emt 0:00:12]} Bg5 {[%emt 0:00:32]} 34. Rf1 {[%emt 0:01:07]} Rd8 {[%emt 0:01:25]} 35. Rh1 {[%emt 0:01:12]} Bh4 {[%emt 0:01:51]} 36. Rc1 {[%emt 0:01:37]} Re8 {[%emt 0:02:30]} 37. Nd2 {[%emt 0:03:54]} Kb6 {[%emt 0:01:13]} 38. Rg1 {[%emt 0:02:02]} Bg5 {[%emt 0:00:51]} 39. Nc4+ {[%emt 0:00:11]} Kc7 {[%emt 0:00:38]} 40. e5 {[%emt 0:02:07]} Bh6 {[%emt 0:00:15]} 41. e6 {[%emt 0:00:46]} Rd8 {[%emt 0:00:34]} 42. b3 {[%emt 0:02:56]} Rd5 {[%emt 0:00:53]} 43. Rf1 {[%emt 0:00:15]} Rd4 {[%emt 0:01:01]} 44. Rf3 {[%emt 0:00:41]} Rd8 {[%emt 0:01:16]} 45. Kd1 {[%emt 0:02:16]} Bg5 {[%emt 0:01:16]} 46. Kc2 {[%emt 0:00:19]} Rd4 {[%emt 0:01:59]} 47. Rf2 {[%emt 0:00:52]} Rd5 {[%emt 0:01:19]} 48. Kc3 {[%emt 0:04:31]} h4 {[%emt 0:01:20]} 49. Rf3 {[%emt 0:02:27]} Kd8 {[%emt 0:00:57]} 50. Nd2 {[%emt 0:01:00]} Bxd2+ {[%emt 0:00:51]} 51. Kxd2 {[%emt 0:00:04]} Ke7 {[%emt 0:00:17]} 52. Rf4 {[%emt 0:01:43]} g6 {[%emt 0:00:51]} 53. fxg6 {[%emt 0:00:38]} Rg5 {[%emt 0:00:04]} 54. Rxh4 {[%emt 0:01:02]} Rxg6 {[%emt 0:00:07]} 55. Rh7+ {[%emt 0:01:13]} Kxe6 {[%emt 0:00:05]} 56. Rxa7 {[%emt 0:00:02]} Rh6 {[%emt 0:00:11]} 57. a4 {[%emt 0:02:44]} Rxh3 {[%emt 0:00:08]} 58. a5 {[%emt 0:00:03]} Rh2+ {[%emt 0:00:20]} 59. Kc3 {[%emt 0:00:06]} Ra2 {[%emt 0:00:11]} 60. a6 {[%emt 0:00:06]} Kd6 {[%emt 0:00:14]} 61. Rf7 {[%emt 0:01:53]} Rxa6 {[%emt 0:04:42]} 1/2-1/2

[Event "Opocensky Memorial 2019"]
[Site "Prague"]
[Date "2019.06.23"]
[Round "3.4"]
[White "Kourousis, Epaminondas"]
[Black "Sergeev, Vladimir"]
[Result "0-1"]
[ECO "D15"]
[WhiteElo "2394"]
[BlackElo "2411"]
[Annotator "RC"]
[PlyCount "78"]
[EventDate "2019.06.22"]
[EventType "tourn"]
[EventCountry "CZE"]
[SourceTitle "playchess.com"]
[Source "ChessBase"]
[SourceQuality "1"]
[TimeControl "5400+30"]

1. d4 {[%emt 1:30:30]} Nf6 2. c4 c6 3. Nc3 d5 4. Nf3 a6 5. g3 b5 6. b3 Bf5 7. Bg2 e6 8. O-O Ne4 9. Nxe4 {[%emt 0:04:00]} Bxe4 {[%emt 1:34:30]} 10. Bg5 {[%emt 0:00:30]} f6 {[%emt 0:00:30]} 11. Bf4 {[%emt 0:00:30]} g5 {[%emt 0:00:30]} 12. Bd2 {[%emt 0:00:30]} Nd7 {[%emt 0:00:30]} 13. Qe1 {[%emt 0:00:30]} a5 {[%emt 0:00:30]} 14. cxb5 {[%emt 0:00:30]} cxb5 {[%emt 0:00:30]} 15. Rc1 {[%emt 0:00:30]} Ra6 {[%emt 0:00:30]} 16. Qd1 {[%emt 0:00:30]} Ba3 {[%emt 0:00:30]} 17. Ra1 {[%emt 0:00:30]} Bb2 {[%emt 0:00:30]} 18. Rb1 {[%emt 0:00:30]} Ba3 {[%emt 0:00:30]} 19. Ra1 {[%emt 0:00:30]} Rc6 {[%emt 0:00:30]} 20. Bc1 {[%emt 0:00:30]} Bc2 {[%emt 0:00:30]} 21. Qe1 {[%emt 0:00:30]} Be7 {[%emt 0:00:30]} 22. Bd2 {[%emt 0:00:30]} b4 {[%emt 0:00:30]} 23. Rc1 {[%emt 0:00:30]} Qc8 {[%emt 0:00:30]} 24. h4 {[%emt 0:00:30]} h6 {[%emt 0:00:30]} 25. Be3 {[%emt 0:00:30]} Kf7 {[%emt 0:00:30]} 26. Qd2 {[%emt 0:00:30]} Rc3 {[%emt 0:00:30]} 27. Ne1 {[%emt 0:00:30]} Bf5 {[%emt 0:00:30]} 28. Rd1 {[%emt 0:00:30]} a4 {[%emt 0:00:30]} 29. Qb2 {[%emt 0:00:30]} a3 {[%emt 0:00:30]} 30. Qd2 {[%emt 0:00:30]} Qc7 {[%emt 0:00:30]} 31. hxg5 {[%emt 0:00:30]} hxg5 {[%emt 0:00:30]} 32. Nd3 {[%emt 0:00:30]} Rc8 {[%emt 0:00:30]} 33. Rc1 {[%emt 0:00:30]} Bxd3 {[%emt 0:00:30]} 34. exd3 {[%emt 0:00:30]} Rxc1 {[%emt 0:00:30]} 35. Qxc1 {[%emt 0:00:30]} Qxc1 {[%emt 0:00:30]} 36. Rxc1 {[%emt 0:00:30]} Rxc1+ {[%emt 0:00:30]} 37. Bxc1 {[%emt 0:00:30]} Nb8 {[%emt 0:00:30]} 38. g4 {[%emt 0:00:30]} Nc6 {[%emt 0:00:30]} 39. Be3 Bd8 {[%emt 0:00:30]} 0-1

[Event "Opocensky Memorial 2019"]
[Site "Prague"]
[Date "2019.06.23"]
[Round "3.5"]
[White "Kozusek, Daniel"]
[Black "Neuman, Petr"]
[Result "1-0"]
[ECO "D00"]
[WhiteElo "2339"]
[BlackElo "2395"]
[Annotator "NA RC"]
[PlyCount "59"]
[EventDate "2019.06.22"]
[EventType "tourn"]
[EventCountry "CZE"]
[SourceTitle "playchess.com"]
[Source "ChessBase"]
[SourceQuality "1"]
[TimeControl "5400+30"]

1. d4 {[%emt 0:00:00]} d5 {[%emt 0:00:00]} 2. Bf4 {[%emt 0:00:06]} Nf6 {[%emt 0:00:00]} 3. e3 {[%emt 0:00:07]} c5 4. dxc5 {[%emt 0:00:36]} Nc6 {[%emt 0:00:15]} 5. Bb5 {[%emt 0:00:29]} e6 {[%emt 0:32:32]} 6. b4 {[%emt 0:00:10]} a5 {[%emt 0:00:20]} 7. c3 {[%emt 0:00:17]} Bd7 {[%emt 0:00:46]} 8. Qb3 {[%emt 0:00:12]} Nh5 {[%emt 0:02:29]} 9. Ne2 {[%emt 0:00:29]} g5 {[%emt 0:02:35]} 10. Bxc6 {[%emt 0:05:52]} bxc6 {[%emt 0:01:08]} 11. Be5 {[%emt 0:03:16]} f6 {[%emt 0:01:44]} 12. Bd6 {[%emt 0:03:16]} Bxd6 {[%emt 0:00:27]} 13. cxd6 {[%emt 0:00:04]} Qb8 {[%emt 0:00:20]} 14. h4 {[%emt 0:04:18]} g4 {[%emt 0:01:13]} 15. bxa5 {[%emt 0:00:19]} Qa7 {[%emt 0:17:42]} 16. Qb4 {[%emt 0:05:50]} Rg8 {[%emt 0:00:30]} 17. Nd2 {[%emt 0:01:56]} Rb8 {[%emt 0:03:03]} 18. Qd4 {[%emt 0:08:06]} c5 {[%emt 0:00:38]} 19. Qd3 {[%emt 0:00:04]} Bb5 {[%emt 0:05:01]} 20. c4 {[%emt 0:01:27]} Bxc4 {[%emt 0:01:01]} 21. Nxc4 {[%emt 0:01:59]} dxc4 {[%emt 0:00:12]} 22. d7+ {[%emt 0:09:37]} Kf7 {[%emt 0:02:30]} 23. Qxh7+ {[%emt 0:01:22]} Ng7 {[%emt 0:00:04]} 24. O-O {[%emt 0:06:05]} Rh8 {[%emt 0:04:01]} 25. Qe4 {[%emt 0:03:01]} Rxh4 {[%emt 0:02:36]} 26. Rfd1 {[%emt 0:00:36]} Qc7 {[%emt 0:01:09]} 27. Nf4 {[%emt 0:09:33]} f5 {[%emt 0:01:47]} 28. Qxc4 {[%emt 0:00:07]} Rhh8 {[%emt 0:00:26]} 29. Qc3 {[%emt 0:02:48]} e5 {[%emt 0:01:21]} 30. Qc4+ {[%emt 0:00:08]} 1-0

[Event "Opocensky Memorial 2019"]
[Site "Prague"]
[Date "2019.06.24"]
[Round "4.1"]
[White "Sokolov, Alexander"]
[Black "Neuman, Petr"]
[Result "1/2-1/2"]
[ECO "B87"]
[WhiteElo "2382"]
[BlackElo "2395"]
[Annotator "NA"]
[PlyCount "50"]
[EventDate "2019.06.22"]
[EventType "tourn"]
[EventCountry "CZE"]
[SourceTitle "playchess.com"]
[Source "ChessBase"]
[SourceQuality "1"]
[TimeControl "5400+30"]

1. e4 {[%emt 0:00:00]} c5 {[%emt 0:01:40]} 2. Nf3 {[%emt 0:00:00]} d6 {[%emt 0:00:52]} 3. d4 {[%emt 0:00:00]} cxd4 {[%emt 0:00:04]} 4. Nxd4 {[%emt 0:00:00]} Nf6 {[%emt 0:00:04]} 5. Nc3 {[%emt 0:00:00]} a6 {[%emt 0:00:24]} 6. Bc4 {[%emt 0:00:11]} e6 {[%emt 0:00:07]} 7. Bb3 {[%emt 0:00:04]} Be7 {[%emt 0:00:42]} 8. O-O {[%emt 0:00:38]} b5 {[%emt 0:00:21]} 9. f4 {[%emt 0:02:39]} Bb7 {[%emt 0:01:11]} 10. Be3 {[%emt 0:07:54]} b4 {[%emt 0:22:54]} 11. e5 {[%emt 0:00:34]} bxc3 {[%emt 0:03:32]} 12. exf6 {[%emt 0:00:05]} Bxf6 {[%emt 0:00:09]} 13. bxc3 {[%emt 0:00:04]} O-O {[%emt 0:02:08]} 14. f5 {[%emt 0:00:12]} e5 {[%emt 0:07:04]} 15. Ne2 {[%emt 0:00:19]} Qc7 {[%emt 0:08:54]} 16. Qd2 {[%emt 0:06:03]} Nc6 {[%emt 0:02:13]} 17. Rad1 {[%emt 0:01:26]} Rfd8 {[%emt 0:02:14]} 18. Ng3 {[%emt 0:06:27]} Na5 {[%emt 0:05:02]} 19. Bd5 {[%emt 0:07:07]} Nc4 {[%emt 0:03:54]} 20. Qe2 {[%emt 0:14:44]} Bxd5 {[%emt 0:00:15]} 21. Rxd5 {[%emt 0:00:06]} Qc6 {[%emt 0:00:06]} 22. Rfd1 {[%emt 0:05:19]} Nb2 {[%emt 0:00:41]} 23. R1d2 {[%emt 0:00:15]} Nc4 {[%emt 0:00:14]} 24. Rd1 {[%emt 0:01:43]} Nb2 {[%emt 0:00:07]} 25. R1d2 {[%emt 0:00:45]} Nc4 {[%emt 0:00:07]} 1/2-1/2

[Event "Opocensky Memorial 2019"]
[Site "Prague"]
[Date "2019.06.24"]
[Round "4.2"]
[White "Sergeev, Vladimir"]
[Black "Kozusek, Daniel"]
[Result "1/2-1/2"]
[ECO "B40"]
[WhiteElo "2411"]
[BlackElo "2339"]
[Annotator "NA"]
[PlyCount "74"]
[EventDate "2019.06.22"]
[EventType "tourn"]
[EventCountry "CZE"]
[SourceTitle "playchess.com"]
[Source "ChessBase"]
[SourceQuality "1"]
[TimeControl "5400+30"]

1. Nf3 {[%emt 0:03:55]} d5 {[%emt 0:00:00]} 2. d3 {[%emt 0:00:23]} Nf6 {[%emt 0:02:19]} 3. Nbd2 {[%emt 0:00:13]} e6 {[%emt 0:02:57]} 4. e4 {[%emt 0:00:31]} c5 {[%emt 0:00:08]} 5. c3 {[%emt 0:00:18]} Nc6 {[%emt 0:00:46]} 6. a3 {[%emt 0:00:07]} a5 {[%emt 0:01:56]} 7. a4 {[%emt 0:00:20]} b6 {[%emt 0:00:52]} 8. Be2 {[%emt 0:00:08]} Ba6 {[%emt 0:01:17]} 9. O-O {[%emt 0:01:52]} Be7 {[%emt 0:03:17]} 10. Re1 {[%emt 0:00:33]} O-O {[%emt 0:00:25]} 11. Bf1 {[%emt 0:03:09]} Qc7 {[%emt 0:07:17]} 12. exd5 {[%emt 0:07:12]} exd5 {[%emt 0:07:35]} 13. Nb3 {[%emt 0:06:34]} Bd6 {[%emt 0:06:03]} 14. g3 {[%emt 0:04:14]} h6 {[%emt 0:03:26]} 15. Bg2 {[%emt 0:02:55]} Rfe8 {[%emt 0:00:35]} 16. Be3 {[%emt 0:10:41]} Ng4 {[%emt 0:01:28]} 17. d4 {[%emt 0:00:50]} Nxe3 {[%emt 0:02:18]} 18. fxe3 {[%emt 0:04:04]} Rad8 {[%emt 0:00:49]} 19. Nh4 {[%emt 0:01:06]} Bf8 {[%emt 0:00:19]} 20. Qc2 {[%emt 0:03:44]} Bc8 {[%emt 0:23:43]} 21. e4 {[%emt 0:11:13]} cxd4 {[%emt 0:01:44]} 22. cxd4 {[%emt 0:05:00]} Qd7 {[%emt 0:01:10]} 23. e5 {[%emt 0:06:59]} Nb4 {[%emt 0:03:37]} 24. Qd2 {[%emt 0:01:06]} Ba6 {[%emt 0:00:22]} 25. Re3 {[%emt 0:00:35]} Rc8 {[%emt 0:01:07]} 26. Rc3 {[%emt 0:00:13]} Bc4 {[%emt 0:00:45]} 27. Nc1 {[%emt 0:03:52]} Nc6 {[%emt 0:00:04]} 28. Re3 {[%emt 0:00:34]} Rc7 {[%emt 0:06:57]} 29. Nf3 {[%emt 0:01:03]} Rec8 {[%emt 0:00:19]} 30. Nd3 {[%emt 0:03:20]} Bxd3 {[%emt 0:01:16]} 31. Rxd3 {[%emt 0:00:08]} Bb4 {[%emt 0:00:05]} 32. Qe3 {[%emt 0:04:14]} Nd8 {[%emt 0:00:05]} 33. b3 {[%emt 0:00:54]} Rc2 {[%emt 0:01:58]} 34. Rf1 {[%emt 0:00:24]} R8c3 {[%emt 0:06:51]} 35. Kh1 {[%emt 0:01:53]} Rxd3 {[%emt 0:01:33]} 36. Qxd3 {[%emt 0:00:01]} Rc3 {[%emt 0:01:00]} 37. Qd1 {[%emt 0:01:46]} Ne6 {[%emt 0:04:32]} 1/2-1/2